bitfinex-derivatives/quotes_ETHF0:USTF0_20250830
["timestamp","ask_amount","ask_price","bid_price","bid_amount"]
[1756564559396,3.2078,4355.1,4355.0,0.7219]
[1756564560291,3.2078,4355.6,4355.1,0.2859]
[1756564560495,3.4098,4356.1,4356.0,0.4889]
[1756564560697,3.6742,4356.1,4356.0,0.7219]
[1756564561303,0.2644,4356.0,4355.8,0.233]
[1756564561595,0.202,4355.8,4355.7,0.233]
[1756564561795,0.4664,4355.8,4355.7,0.233]
[1756564561990,0.4664,4355.8,4355.0,0.2859]
[1756564561991,0.4664,4355.8,4355.4,0.233]
[1756564562189,0.4664,4355.5,4355.4,0.233]
[1756564564097,0.4664,4355.5,4355.4,0.7219]
[1756564564701,0.202,4355.5,4355.4,0.233]
[1756564564904,0.202,4355.5,4355.4,0.436]
[1756564565201,0.202,4355.5,4355.4,0.7219]
[1756564565401,0.4664,4355.5,4355.4,0.7219]
[1756564566599,3.2078,4355.6,4355.4,0.7219]
[1756564566801,3.2078,4355.6,4355.5,0.4889]
[1756564567190,3.4098,4355.6,4355.5,0.4889]
[1756564567503,3.6736,4355.6,4355.5,0.4889]
[1756564567905,3.2078,4355.6,4355.5,0.4889]
[1756564569500,0.2638,4355.5,4354.7,0.3018]
[1756564569699,0.4602,4354.3,4354.2,0.4998]
[1756564571794,0.2638,4354.7,4354.2,0.4998]
[1756564572100,0.2638,4354.9,4354.3,0.3018]
[1756564574908,0.4602,4354.4,4354.3,0.4998]
[1756564582029,3.2078,4354.5,4354.4,0.4998]
[1756564582210,3.4042,4355.5,4355.4,0.198]
[1756564582521,3.4042,4355.5,4355.4,0.7328]
[1756564582522,3.6684,4355.5,4355.4,0.7328]
[1756564584619,3.6684,4355.5,4354.3,0.41335]
[1756564584816,0.4606,4354.6,4354.5,0.4998]
[1756564585115,0.4606,4354.6,4354.5,0.198]
[1756564585417,0.2642,4355.3,4354.9,0.198]
[1756564585619,0.1964,4355.4,4355.3,0.3018]
[1756564585816,0.1964,4355.4,4355.3,0.4998]
[1756564586821,0.4606,4355.4,4355.3,0.4998]
[1756564589319,0.4606,4355.3,4355.2,0.233]
[1756564590725,0.1964,4355.3,4355.2,0.233]
[1756564590915,0.4606,4355.3,4355.2,0.233]
[1756564591115,0.4606,4355.3,4355.2,0.7328]
[1756564591311,3.472,4355.6,4355.3,0.3018]
[1756564591521,0.2642,4355.9,4355.8,0.198]
[1756564591725,0.4606,4355.9,4355.8,0.7328]
[1756564592720,0.4606,4355.9,4354.8,0.4133]
[1756564592920,0.4606,4355.9,4355.3,0.3018]
[1756564593722,0.4606,4355.4,4355.3,0.4998]
[1756564593921,0.4606,4355.4,4355.3,0.7328]
[1756564594622,0.4606,4355.4,4355.3,0.431]
[1756564594820,0.4606,4355.4,4354.7,3.2078]
[1756564594821,0.2642,4355.3,4354.7,3.2078]
[1756564595023,0.1964,4354.2,4354.1,0.4998]
[1756564595225,0.4606,4354.2,4354.1,0.7328]
[1756564595623,0.1964,4354.3,4354.2,0.3018]
[1756564595924,0.4606,4354.3,4354.2,0.4998]
[1756564596425,0.4606,4354.1,4353.8,0.3018]
[1756564596720,0.4606,4354.1,4353.7,0.233]
[1756564596919,0.4606,4353.8,4353.7,0.233]
[1756564597326,0.4606,4353.8,4353.7,0.431]
[1756564597619,0.4606,4353.8,4353.7,0.233]
[1756564598024,0.1964,4353.8,4352.9,0.3104]
[1756564598224,0.2644,4353.3,4353.1,0.3104]
[1756564598425,3.2078,4353.4,4353.1,0.3104]
[1756564598426,0.452,4353.2,4353.1,0.3104]
[1756564598628,0.452,4353.2,4353.1,0.745]
[1756564598822,0.452,4353.2,4353.1,0.512]
[1756564599015,0.452,4353.2,4353.1,0.745]
[1756564600627,0.452,4353.2,4353.1,0.512]
[1756564601422,0.452,4353.2,4352.7,0.3104]
[1756564601721,0.452,4352.8,4352.7,0.5434]
[1756564602224,33.079,4355.0,4352.3,0.4346]
[1756564602225,0.1876,4352.4,4352.3,0.4346]
[1756564602429,0.452,4352.4,4352.3,0.745]
[1756564604922,0.1876,4352.4,4352.1,0.233]
[1756564605122,0.1876,4352.2,4352.1,0.4346]
[1756564605330,0.452,4352.2,4352.1,0.745]
[1756564606234,0.1876,4352.2,4352.1,0.745]
[1756564608436,0.452,4352.2,4352.1,0.745]
[1756564608629,0.452,4352.2,4352.1,0.512]
[1756564608826,0.452,4352.2,4352.1,0.745]
[1756564609134,0.452,4352.2,4352.1,0.512]
[1756564611136,0.452,4352.2,4352.1,0.745]
[1756564611734,0.2644,4352.7,4352.2,0.3104]
[1756564611934,3.6598,4352.9,4352.8,0.2016]
[1756564612133,3.6598,4352.9,4352.8,0.512]
[1756564613733,3.2078,4352.9,4352.8,0.512]
[1756564614332,3.3954,4352.9,4352.8,0.512]
[1756564614533,3.6598,4352.9,4352.8,0.512]
[1756564616029,0.2644,4352.8,4352.0,0.233]
[1756564616236,0.452,4352.8,4352.7,0.512]
[1756564618236,0.1876,4352.8,4352.7,0.512]
[1756564618434,3.2078,4352.9,4352.7,0.2016]
[1756564618639,3.6598,4352.9,4352.8,0.512]
[1756564619243,3.2078,4352.9,4352.8,0.512]
[1756564621035,3.3954,4352.9,4352.8,0.512]
[1756564621239,3.6598,4352.9,4352.8,0.512]
[1756564622144,3.6598,4352.9,4352.8,0.2016]
[1756564622344,3.6598,4352.9,4352.5,0.5434]
[1756564622540,0.1876,4352.7,4352.6,0.512]
[1756564622743,0.452,4352.7,4352.6,0.512]
[1756564623142,0.452,4352.7,4352.1,0.5434]
[1756564623143,0.1876,4352.7,4352.1,0.5434]
[1756564623349,0.1876,4352.7,4352.6,0.512]
[1756564624949,0.452,4352.7,4352.6,0.512]
[1756564630246,0.22975,4352.7,4351.8,0.2971]
[1756564630447,0.4578,4351.9,4351.8,0.4984]
[1756564630846,0.4578,4351.9,4351.5,0.2971]
[1756564631045,0.4578,4351.9,4351.4,0.233]
[1756564631247,0.4578,4351.9,4351.5,0.2971]
[1756564631452,0.4578,4351.9,4351.4,0.233]
[1756564631649,0.4578,4351.9,4351.5,0.2971]
[1756564631851,0.2646,4351.8,4351.2,36.2868]
[1756564632151,0.1932,4351.4,4351.3,0.7314]
[1756564633354,0.21163291,4351.4,4351.3,0.7314]
[1756564634457,3.68403291,4351.4,4351.3,0.4984]
[1756564634644,0.2646,4351.3,4350.8,0.5301]
[1756564634848,0.1932,4350.9,4350.8,0.7314]
[1756564635043,0.4578,4350.9,4350.8,0.7314]
[1756564635555,0.01843291,4350.9,4350.8,0.7314]
[1756564637655,0.21163291,4350.9,4350.8,0.7314]
[1756564638057,0.01843291,4350.9,4350.8,0.7314]
[1756564638553,0.47623291,4350.9,4350.8,0.4984]
[1756564638756,0.47623291,4350.9,4350.8,0.7314]
[1756564639661,0.21163291,4350.9,4350.8,0.7314]
[1756564640752,0.21163291,4350.9,4350.8,0.4984]
[1756564641258,0.1932,4350.9,4350.8,0.4984]
[1756564641459,0.22674582,4350.9,4350.8,0.4984]
[1756564643059,0.49134582,4350.9,4350.8,0.4984]
[1756564643253,0.22674582,4350.9,4350.8,0.4984]
[1756564643956,0.03354582,4350.9,4350.8,0.4984]
[1756564645956,3.2078,4351.4,4351.3,0.2013]
[1756564646161,3.2078,4351.9,4351.4,0.2971]
[1756564646460,3.401,4351.9,4351.5,0.2971]
[1756564646665,3.401,4351.9,4351.3,0.233]
[1756564646849,0.1932,4351.5,4351.4,0.2013]
[1756564647052,0.4913,4351.5,4351.4,0.4984]
[1756564649268,0.50594848,4351.5,4351.4,0.4984]
[1756564651267,0.2981,4351.4,4350.7,0.2971]
[1756564651564,0.4913,4350.8,4350.7,0.4984]
[1756564652364,0.50594848,4350.8,4350.7,0.4984]
[1756564655964,0.20784848,4350.8,4350.7,0.4984]
[1756564656162,4.73579849,4350.8,4350.1,0.2971]
[1756564656366,0.4913,4350.0,4349.9,0.4984]
[1756564656864,0.2981,4350.4,4349.9,0.2013]
[1756564657167,0.4913,4350.4,4350.3,0.4984]
[1756564657368,0.52141273,4350.4,4350.3,0.4984]
[1756564658563,0.2835,4350.3,4349.8,0.2903]
[1756564658875,0.2835,4350.3,4349.9,0.2903]
[1756564659165,0.4781,4350.3,4350.2,0.1904]
[1756564659470,0.50821273,4350.3,4350.2,0.4807]
[1756564659766,0.50821273,4350.3,4349.7,0.2903]
[1756564660070,3.2078,4350.0,4349.9,0.1904]
[1756564660268,3.2078,4350.0,4349.9,0.4807]
[1756564660468,3.23791273,4350.0,4349.9,0.4807]
[1756564660968,3.43251273,4350.0,4349.9,0.4807]
[1756564661362,3.71601273,4350.0,4349.9,0.4807]
[1756564661770,3.23791273,4350.0,4349.9,0.4807]
[1756564663273,3.71601273,4350.0,4349.9,0.4807]
[1756564663967,3.23791273,4350.0,4349.9,0.4807]
[1756564665471,3.25337379,4350.0,4349.9,4.71059]
[1756564665772,3.25337379,4350.0,4349.9,4.7137]
[1756564665970,3.2078,4350.9,4349.9,7.4408]
[1756564666179,0.4781,4351.6,4351.5,0.4807]
[1756564667466,3.6859,4352.2,4352.1,0.4807]
[1756564667862,3.6859,4352.2,4351.9,0.234]
[1756564667863,0.4781,4352.6,4352.5,0.1904]
[1756564668067,0.4781,4352.6,4352.5,0.7147]
[1756564668367,0.4781,4352.6,4352.5,0.1904]
[1756564668571,0.4781,4352.6,4352.5,0.234]
[1756564668871,0.2835,4353.0,4352.5,0.7147]
[1756564669077,3.2078,4353.6,4353.2,0.1904]
[1756564669078,3.4913,4353.6,4353.2,0.1904]
[1756564669268,3.6859,4353.6,4353.5,0.4807]
[1756564669577,0.4781,4353.6,4353.5,0.4807]
[1756564670368,0.2835,4354.6,4353.6,0.2903]
[1756564670669,0.1946,4353.9,4353.8,0.4807]
[1756564670872,0.4781,4353.9,4353.8,0.4807]
[1756564671072,0.4781,4353.9,4353.8,0.1904]
[1756564671273,0.2835,4353.8,4353.7,3.2078]
[1756564671477,0.4781,4353.8,4353.7,3.2078]
[1756564672369,0.4781,4353.8,4353.7,3.3982]
[1756564672869,0.4781,4353.8,4353.7,3.6885]
[1756564673879,0.4781,4353.8,4353.7,3.9225]
[1756564674379,0.2835,4354.6,4353.8,0.2903]
[1756564675878,0.4781,4354.6,4354.5,0.1904]
[1756564676273,0.4781,4354.6,4354.5,0.4807]
[1756564677166,0.4781,4354.6,4354.5,0.1904]
[1756564677374,0.4781,4354.6,4354.5,0.4807]
[1756564680878,3.2078,4355.2,4354.5,0.4807]
[1756564681082,3.2078,4355.2,4355.1,0.4807]
[1756564682881,0.2835,4355.8,4355.1,0.4807]
[1756564683086,0.4781,4356.1,4356.0,0.1904]
[1756564683790,0.1946,4356.1,4356.0,0.4807]
[1756564684582,0.4781,4356.1,4356.0,0.4807]
[1756564685385,3.4418,4357.1,4354.8,40.8]
[1756564685386,0.1946,4355.8,4355.7,0.234]
[1756564685589,0.1946,4355.8,4355.7,0.7147]
[1756564685789,0.2835,4356.0,4355.7,0.7147]
[1756564686091,0.2835,4356.5,4355.8,0.2903]
[1756564686688,0.2835,4356.5,4355.7,0.234]
[1756564686689,0.4781,4356.5,4356.4,0.4807]
[1756564687594,0.1946,4356.5,4356.4,0.4807]
[1756564688491,0.4845,4356.5,4356.4,0.4807]
[1756564689797,0.4915,4356.0,4355.9,3.3987]
[1756564690099,0.2016,4356.0,4355.9,3.6327]
[1756564690294,0.2016,4356.0,4355.9,3.9207]
[1756564690598,0.4915,4356.0,4355.9,0.7129]
[1756564690899,0.2016,4356.0,4355.9,0.7129]
[1756564691194,0.2016,4356.0,4355.9,3.9207]
[1756564692196,0.4915,4356.0,4355.9,3.9207]
[1756564692698,0.4915,4356.0,4355.9,3.6867]
[1756564692887,0.4915,4356.0,4355.9,3.9207]
[1756564693494,0.4915,4356.0,4355.9,3.6867]
[1756564693693,0.4915,4356.0,4355.9,3.9207]
[1756564694702,0.2899,4356.3,4355.9,3.9207]
[1756564695003,0.2016,4356.1,4356.0,0.4789]
[1756564695199,0.4915,4356.1,4356.0,0.4789]
[1756564695501,0.22954,4357.0,4355.9,3.4418]
[1756564695502,0.2899,4357.0,4356.1,0.288]
[1756564695801,0.51944,4357.0,4356.1,0.288]
[1756564696196,0.2016,4356.2,4356.1,0.4789]
[1756564696500,0.2899,4356.5,4356.2,0.288]
[1756564696700,0.4915,4356.5,4356.4,0.4789]
[1756564696902,0.4915,4356.5,4356.3,0.234]
[1756564698001,0.4915,4356.4,4356.3,0.1909]
[1756564698301,0.4915,4356.4,4356.3,0.4789]
[1756564700102,0.4915,4356.4,4356.3,0.1909]
[1756564701101,0.2016,4356.4,4356.3,0.4789]
[1756564702097,0.4915,4356.7,4356.6,0.1909]
[1756564702295,0.4915,4356.7,4356.6,0.4789]
[1756564702491,1.05323583,4356.7,4356.6,0.4789]
[1756564708205,0.2899,4356.6,4356.3,0.288]
[1756564708408,0.2016,4356.4,4356.3,0.4789]
[1756564708610,1.05323583,4356.4,4356.3,0.4789]
[1756564709409,0.76333583,4356.4,4356.3,0.4789]
[1756564709911,0.56173583,4356.4,4356.3,0.4789]
[1756564710115,4.44414181,4357.1,4356.3,0.4789]
[1756564710116,3.4977,4357.1,4356.5,0.1909]
[1756564710309,0.56426214,4357.0,4356.9,0.1909]
[1756564710508,1.05576214,4357.0,4356.9,0.33545068]
[1756564713217,0.4915,4356.2,4356.1,0.4789]
[1756564713418,0.4915,4356.2,4356.1,0.94144]
[1756564713817,0.4915,4356.2,4356.1,0.7119]
[1756564716317,0.2899,4357.1,4356.2,0.288]
[1756564716518,0.2899,4356.9,4356.2,0.288]
[1756564716718,0.56468651,4356.8,4356.2,0.288]
[1756564716919,0.4915,4356.6,4356.5,0.4789]
[1756564717118,1.05618651,4356.6,4356.5,0.7119]
[1756564718522,1.05618651,4356.6,4356.5,0.4239]
[1756564718921,1.05618651,4356.6,4356.5,0.7237]
[1756564719424,0.4915,4356.6,4356.5,0.7237]
[1756564723325,0.2918,4357.1,4356.6,0.2998]
[1756564723622,0.4925,4357.1,4357.0,0.2009]
[1756564723823,0.4925,4357.1,4356.5,0.5328]
[1756564724024,0.2007,4356.6,4356.5,0.7337]
[1756564724226,0.4925,4356.6,4356.5,0.7337]
[1756564725329,0.2918,4356.9,4356.6,0.2998]
[1756564725529,0.2918,4356.9,4356.8,0.5007]
[1756564725731,0.4925,4356.9,4356.8,0.5007]
[1756564726723,0.4925,4356.9,4356.5,0.2998]
[1756564727018,0.4925,4356.9,4356.6,0.233]
[1756564727222,0.2918,4356.8,4356.7,0.5007]
[1756564727423,0.4925,4356.8,4356.7,0.5007]
[1756564728231,0.4925,4356.8,4356.7,0.2009]
[1756564728731,0.4925,4356.8,4356.7,0.5007]
[1756564729128,0.4925,4356.8,4356.6,0.233]
[1756564729329,0.2918,4356.7,4356.1,0.2998]
[1756564729529,0.4925,4356.7,4356.6,0.5007]
[1756564731627,0.4925,4356.7,4356.2,0.233]
[1756564731628,0.4925,4356.7,4356.3,0.2998]
[1756564731829,0.2007,4356.2,4356.1,0.5007]
[1756564732037,0.4925,4356.2,4356.1,0.7337]
[1756564732839,0.4925,4356.2,4356.1,0.5007]
[1756564733131,0.2007,4356.2,4356.1,0.233]
[1756564733634,0.4925,4356.2,4356.1,0.233]
[1756564735735,0.4925,4356.2,4356.1,0.7337]
[1756564736431,0.2007,4356.2,4356.0,3.2078]
[1756564736733,0.4925,4355.8,4355.7,0.2998]
[1756564736936,0.4925,4355.8,4355.7,0.7337]
[1756564738036,0.4925,4355.8,4355.5,3.2078]
[1756564738238,0.2007,4355.7,4355.6,0.233]
[1756564738534,0.4925,4355.7,4355.6,0.7337]
[1756564738837,0.2007,4355.7,4355.6,0.7337]
[1756564739138,3.2078,4356.7,4355.6,0.4339]
[1756564739435,3.2078,4356.7,4355.7,0.5007]
[1756564739436,0.4925,4355.8,4355.7,0.5007]
[1756564740635,0.2007,4355.8,4355.7,0.5007]
[1756564740939,0.2918,4356.6,4355.8,0.2998]
[1756564741134,0.2918,4356.6,4355.9,0.233]
[1756564741335,0.2918,4356.6,4356.0,0.2998]
[1756564741641,0.4925,4356.8,4356.7,0.2009]
[1756564741938,0.4925,4356.8,4356.7,0.7337]
[1756564746542,0.4925,4357.6,4357.5,0.5007]
[1756564746745,0.4925,4357.6,4357.5,0.7337]
[1756564747742,3.2078,4357.7,4357.6,0.4988]
[1756564748440,0.2915,4357.9,4357.7,0.3004]
[1756564748633,3.2078,4358.3,4357.8,0.4988]
[1756564748839,3.2078,4358.3,4357.7,3.2078]
[1756564748840,0.4864,4358.2,4358.1,0.4988]
[1756564749039,0.4864,4358.2,4358.1,0.7318]
[1756564749936,0.2915,4358.5,4358.2,0.3004]
[1756564750142,0.2915,4358.5,4358.4,0.4988]
[1756564750143,0.4864,4358.5,4358.4,0.4988]
[1756564751144,0.4864,4358.5,4358.2,0.3004]
[1756564751340,0.4864,4358.5,4358.1,0.233]
[1756564751747,0.4864,4358.5,4358.2,0.3004]
[1756564752137,0.4864,4358.5,4358.1,0.233]
[1756564752341,0.4864,4358.5,4358.2,0.3004]
[1756564753149,0.4864,4358.5,4358.1,0.233]
[1756564753351,0.4864,4358.5,4358.2,0.3004]
[1756564753851,0.4864,4358.5,4358.4,0.4988]
[1756564759848,0.1949,4358.5,4358.4,0.4988]
[1756564760053,0.4864,4358.9,4358.8,0.1984]
[1756564760258,0.4864,4358.9,4358.8,0.7318]
[1756564761057,3.2078,4359.0,4358.9,0.3004]
[1756564761255,3.2078,4359.0,4358.9,0.4988]
[1756564761662,3.4993,4359.0,4358.9,0.4988]
[1756564762358,0.1949,4359.1,4359.0,0.1984]
[1756564762566,0.4864,4359.1,4359.0,0.4988]
[1756564763363,0.4864,4359.1,4358.7,3.5082]
[1756564763561,0.2915,4359.0,4358.8,0.5334]
[1756564763764,0.4864,4358.9,4358.8,0.7318]
[1756564766364,0.2915,4359.5,4358.8,0.4314]
[1756564766565,0.4864,4359.0,4358.9,0.4988]
[1756564770957,0.2915,4360.1,4359.0,0.3004]
[1756564771260,0.4864,4359.3,4359.2,3.7066]
[1756564772966,0.1,4360.2,4359.3,0.3004]
[1756564773160,0.1949,4359.8,4359.7,3.2078]
[1756564773366,0.2915,4360.0,4359.9,0.1984]
[1756564773559,0.2915,4360.0,4359.9,0.7318]
[1756564774465,0.3915,4360.2,4360.0,0.3004]
[1756564774665,0.5864,4360.2,4360.1,0.1984]
[1756564774872,0.5864,4360.2,4360.1,0.4988]
[1756564775961,0.1,4360.2,4360.1,0.4988]
[1756564777873,0.5886,4360.2,4360.1,0.4988]
[1756564778273,0.5886,4360.2,4360.1,0.7318]
[1756564778770,0.5886,4360.2,4360.1,0.4988]
[1756564778969,0.3811,4360.2,4360.1,0.7318]
[1756564779170,0.1,4360.2,4360.1,0.7318]
[1756564780271,0.3811,4360.2,4360.1,0.7318]
[1756564780973,0.1,4360.2,4360.1,0.7318]
[1756564783576,0.1,4360.2,4360.1,41.5318]
[1756564785677,0.1,4360.2,4360.1,41.2988]
[1756564785871,0.1,4360.2,4360.1,41.5318]
[1756564795377,0.1,4360.2,4360.1,41.2988]
[1756564795681,0.3811,4360.2,4360.1,41.5318]
[1756564795880,0.5886,4360.2,4360.1,0.7318]
[1756564797377,0.5886,4360.2,4360.1,0.4988]
[1756564797578,0.5886,4360.2,4360.1,0.7318]
[1756564798180,0.5886,4360.2,4360.1,0.4988]
[1756564798384,0.5886,4360.2,4359.9,40.8]
[1756564798385,0.2811,4360.1,4360.0,0.2049]
[1756564798682,0.4886,4360.1,4360.0,0.7368]
[1756564800478,0.4886,4360.1,4360.0,0.5038]
[1756564801083,0.2075,4360.1,4360.0,0.233]
[1756564801279,0.4886,4360.1,4360.0,0.7368]
[1756564801875,0.1,4360.2,4360.1,0.2989]
[1756564802079,0.1,4360.2,4360.1,0.5038]
[1756564804889,0.5886,4360.2,4360.1,0.7368]
[1756564810382,0.5886,4360.2,4360.1,0.5038]
[1756564810587,0.5886,4360.2,4360.1,0.7368]
[1756564811786,0.5886,4360.2,4360.1,0.5038]
[1756564811984,0.5886,4360.2,4360.1,0.7368]
[1756564812389,0.1,4360.2,4360.1,0.7368]
[1756564813689,0.5916,4360.2,4360.1,0.7368]
[1756564814276,0.3022,4360.1,4360.0,0.1924]
[1756564814484,0.1,4360.2,4360.0,0.4254]
[1756564814988,0.1,4360.2,4360.1,0.2918]
[1756564815177,0.1,4360.2,4360.1,0.4842]
[1756564815378,0.4022,4360.2,4360.1,0.4842]
[1756564817187,0.3022,4360.5,4360.2,0.2918]
[1756564817380,3.2078,4361.4,4361.1,0.4842]
[1756564817381,0.4916,4361.2,4361.1,0.4842]
[1756564817688,0.4916,4361.2,4361.1,0.4254]
[1756564817889,0.7209,4361.2,4361.1,0.233]
[1756564818778,0.4916,4361.2,4361.1,0.233]
[1756564819988,0.4916,4361.2,4360.8,0.2918]
[1756564820181,0.4916,4361.2,4361.1,0.233]
[1756564822094,0.4916,4361.2,4361.1,0.7172]
[1756564824900,49.2828,4361.0,4360.9,3.2078]
[1756564825089,49.7744,4361.0,4360.9,3.4408]
[1756564826685,49.7744,4361.0,4360.9,3.2078]
[1756564826892,49.7744,4361.0,4360.9,0.233]
[1756564827589,49.2828,4361.0,4360.3,3.2078]
[1756564827891,0.4916,4360.4,4360.3,3.2078]
[1756564828387,0.4916,4360.4,4360.3,3.4408]
[1756564828793,0.4916,4360.4,4360.3,3.2078]
[1756564829096,0.4916,4360.4,4360.3,3.4408]
[1756564831289,49.2828,4361.0,4360.3,3.4408]
[1756564831592,0.4916,4360.4,4360.3,3.4408]
[1756564831792,0.4916,4360.4,4360.3,3.2078]
[1756564832091,0.4916,4360.4,4360.3,3.4408]
[1756564833193,0.3022,4360.4,4360.3,3.4408]
[1756564833392,0.4916,4360.4,4360.3,3.4408]
[1756564833593,0.4916,4360.4,4360.3,3.2078]
[1756564833795,0.4916,4360.4,4360.3,3.4408]
[1756564833996,0.3022,4360.4,4360.3,3.4408]
[1756564834494,1.5838589,4361.0,4360.9,0.41272]
[1756564834696,0.4916,4362.8,4360.9,3.4408]
[1756564834887,0.4916,4362.8,4362.7,3.2078]
[1756564835086,8.4916,4362.8,4362.7,3.2078]
[1756564835697,8.4916,4362.8,4362.7,3.4418]
[1756564836288,8.4916,4362.8,4362.7,3.64762084]
[1756564837283,8.4973,4362.8,4362.7,3.9383385]
[1756564838996,8.4973,4362.8,4362.7,3.7043385]
[1756564839297,8.4973,4362.8,4362.7,3.9383385]
[1756564840995,8.4973,4362.8,4362.7,3.9422993]
[1756564841592,8.4973,4362.8,4362.7,3.7082993]
[1756564841797,8.4973,4362.8,4362.7,3.94215316]
[1756564845597,8.4973,4362.8,4362.7,3.70815316]
[1756564845797,8.4973,4362.8,4362.7,3.64714415]
[1756564846300,8.4973,4362.8,4362.7,3.41314415]
[1756564846501,8.4973,4362.8,4362.7,3.64714415]
[1756564848404,8.4973,4362.8,4362.7,3.41314415]
[1756564848902,8.4973,4362.8,4362.7,3.64714415]
[1756564849306,8.4973,4362.8,4362.7,3.41314415]
[1756564849604,8.4973,4362.8,4362.7,3.64714415]
[1756564849905,8.4973,4362.8,4362.7,0.20534415]
[1756564850100,0.2967,4362.7,4362.2,3.2078]
[1756564850300,0.4973,4362.3,4362.2,3.2078]
[1756564850509,8.4973,4362.3,4362.2,3.94071804]
[1756564850698,0.4973,4362.3,4362.2,3.94071804]
[1756564851506,0.4973,4362.3,4362.2,3.9407065]
[1756564851705,0.4973,4362.3,4362.2,3.94072192]
[1756564852603,0.4973,4362.3,4362.2,3.70672192]
[1756564852902,0.4973,4362.3,4362.2,3.94072192]
[1756564853099,0.2967,4362.3,4362.2,3.94072192]
[1756564853805,0.4973,4362.3,4362.2,3.94072192]
[1756564855006,0.2967,4362.3,4362.2,3.94072192]
[1756564855206,3.2078,4363.7,4362.2,3.94072192]
[1756564855408,8.2967,4362.4,4362.3,0.49892192]
[1756564855708,8.4973,4362.4,4362.3,0.49892192]
[1756564856308,0.2967,4362.4,4362.3,0.49892192]
[1756564856901,0.4973,4362.4,4362.3,0.49892192]
[1756564860803,0.2967,4362.4,4362.3,0.49892192]
[1756564861011,0.4973,4362.4,4362.3,0.49892192]
[1756564861308,0.4973,4362.4,4362.3,0.49964986]
[1756564861897,8.4973,4362.4,4362.3,0.49967326]
[1756564862112,8.4973,4362.4,4362.3,0.73267326]
[1756564863608,8.4973,4362.4,4362.3,0.51772772]
[1756564866211,8.4973,4362.4,4362.3,0.28472772]
[1756564866399,8.4973,4362.4,4362.3,0.51772772]
[1756564866706,8.4973,4362.4,4362.3,0.28472772]
[1756564867011,8.4973,4362.4,4362.3,0.51772772]
[1756564867206,0.2011,4362.2,4362.1,33.03]
[1756564867408,0.485,4362.2,4362.1,33.263]
[1756564868010,8.485,4362.2,4362.1,33.03]
[1756564868199,12.485,4362.2,4362.1,33.263]
[1756564868601,4.71424001,4362.2,4361.6,3.2078]
[1756564868804,3.2078,4362.7,4361.0,1.6357278]
[1756564868805,0.485,4361.1,4361.0,3.6942]
[1756564869109,0.485,4361.1,4361.0,3.9272]
[1756564869308,0.2011,4361.1,4361.0,3.9272]
[1756564869605,0.485,4361.1,4361.0,3.9272]
[1756564870307,0.109,4362.6,4361.1,0.2876]
[1756564870308,0.2839,4362.6,4361.1,0.2876]
[1756564870508,0.2839,4362.6,4361.8,0.2876]
[1756564870806,0.2839,4362.6,4361.7,3.2078]
[1756564870807,0.485,4362.6,4361.7,3.2078]
[1756564871109,0.485,4361.9,4361.8,0.7194]
[1756564871807,0.485,4361.9,4361.8,0.1988]
[1756564872110,0.485,4361.9,4361.8,0.7194]
[1756564872606,0.485,4361.9,4361.8,0.4318]
[1756564872804,0.485,4361.8,4361.7,3.2078]
[1756564873007,0.485,4361.8,4361.7,3.9272]
[1756564873198,0.485,4361.8,4361.7,3.4408]
[1756564873404,0.7144411,4361.8,4361.7,3.4408]
[1756564873704,0.7144411,4361.8,4361.7,0.233]
[1756564875403,0.4305411,4361.8,4361.1,3.2078]
[1756564875608,3.2078,4362.2,4361.1,3.2078]
[1756564875609,0.2011,4361.2,4361.1,3.2078]
[1756564875810,0.4305411,4361.2,4361.1,3.2078]
[1756564876011,0.4305411,4361.2,4361.1,3.4408]
[1756564876012,0.7144411,4361.2,4361.1,3.4408]
[1756564876510,0.7144411,4361.2,4361.1,3.9272]
[1756564876813,0.4305411,4361.2,4361.1,3.9272]
[1756564877010,0.2294411,4361.2,4361.1,3.9272]
[1756564878609,0.2294411,4361.2,4361.1,3.6942]
[1756564878915,0.2294411,4361.2,4360.5,3.2078]
[1756564878916,4.4305411,4361.2,4360.5,3.2078]
[1756564879110,0.485,4360.6,4359.9,0.2876]
[1756564879310,0.485,4360.0,4359.9,0.7194]
[1756564879511,0.7144411,4360.0,4359.9,0.7194]
[1756564882416,0.70293626,4360.0,4359.9,0.7194]
[1756564883119,0.70285792,4360.0,4359.9,0.7194]
[1756564888221,0.21785792,4360.0,4359.9,4.7194]
[1756564889119,0.2839,4361.1,4361.0,0.1988]
[1756564889322,0.485,4361.1,4361.0,0.7214]
[1756564889913,3.2078,4361.5,4361.0,0.7214]
[1756564889914,0.2839,4361.4,4361.0,0.7214]
[1756564890113,0.485,4361.4,4361.3,0.1988]
[1756564890311,0.2011,4361.4,4361.3,0.7214]
[1756564890513,3.2078,4361.5,4361.3,0.7214]
[1756564890814,0.2839,4361.9,4361.4,0.2876]
[1756564891022,0.2011,4361.6,4361.5,0.4338]
[1756564891221,0.485,4361.6,4361.5,0.4338]
[1756564891618,0.485,4361.6,4361.5,0.7214]
[1756564892314,0.2839,4361.9,4361.5,0.7214]
[1756564892515,0.2011,4361.7,4361.6,0.4864]
[1756564892821,0.485,4361.7,4361.6,0.4864]
[1756564895724,0.485,4361.7,4361.6,0.1988]